fUSD/lending_fUSD_20250512
["ID","MTS","AMOUNT","RATE_DAILY","PERIOD"]
[360798548,1747031188768,-963.28776872,0.00012579,2]
[360798549,1747031188802,-3878.84224126,0.00012579,2]
[360798550,1747031188836,-3878.84224126,0.00012579,2]
[360798551,1747031188871,-3878.84224126,0.00012579,2]
[360798552,1747031188904,-3878.84224126,0.00012579,2]
[360798553,1747031188938,-3878.84224126,0.00012579,2]
[360798554,1747031188971,-3878.84224126,0.00012579,2]
[360798555,1747031189019,-3878.84224126,0.00012579,2]
[360798556,1747031189056,-963.28776872,0.00012579,2]
[360798557,1747031189091,-3878.84224126,0.00012579,2]
[360798558,1747031189126,-3878.84224126,0.00012579,2]
[360798559,1747031189161,-3878.84224126,0.00012579,2]
[360798560,1747031189195,-3878.84224126,0.00012579,2]
[360798561,1747031189229,-3878.84224126,0.00012579,2]
[360798562,1747031189263,-3878.84224126,0.00012579,2]
[360798563,1747031189298,-3878.84224126,0.00012579,2]
[360798564,1747031189335,-3878.84224126,0.00012579,2]
[360798565,1747031189371,-7811.40561517,0.00012579,2]
[360798566,1747031189405,-7811.40561517,0.00012579,2]
[360798567,1747031189442,-7811.40561517,0.00012579,2]
[360798568,1747031189476,-7811.40561517,0.00012579,2]
[360798569,1747031189510,-7811.40561517,0.00012579,2]
[360798570,1747031189542,-7811.40561517,0.00012579,2]
[360798571,1747031189574,-7811.40561517,0.00012579,2]
[360798572,1747031189612,-7811.40561517,0.00012579,2]
[360798573,1747031189647,-7811.40561517,0.00012579,2]
[360798574,1747031189685,-7811.40561517,0.00012579,2]
[360798575,1747031189719,-7811.40561517,0.00012579,2]
[360798576,1747031189752,-7811.40561517,0.00012579,2]
[360798577,1747031189786,-7811.40561517,0.00012579,2]
[360798578,1747031189818,-7811.40561517,0.00012579,2]
[360798579,1747031189852,-7811.40561517,0.00012579,2]
[360798580,1747031189886,-7811.40561517,0.00012579,2]
[360798581,1747031190276,-7811.40561517,0.00012579,2]
[360798582,1747031190308,-7811.40561517,0.00012579,2]
[360798583,1747031190341,-7811.40561517,0.00012579,2]
[360798584,1747031190373,-7811.40561517,0.00012579,2]
[360798585,1747031190410,-7811.40561517,0.00012579,2]
[360798586,1747031190436,-500.0,0.00012579,2]
[360798587,1747031190460,-401.39584113,0.00012579,2]
[360798588,1747031191365,308.13271681,0.00012336,2]
[360798589,1747031191390,116.22728319,0.00012336,2]
[360798592,1747031272533,185.08,0.00012255,2]
[360798598,1747031349552,150.0,0.00028,120]
[360798606,1747031353329,150.0,0.00028,120]
[360798619,1747031403824,1034.44,0.00012275,2]
[360798641,1747031432404,-784.46856571,0.00012576,2]
[360798642,1747031432423,-300.0,0.00012576,2]
[360798643,1747031432435,-115.53143429,0.00012576,2]
[360798644,1747031432444,-150.0,0.00012576,2]
[360798645,1747031432454,-73.91833044,0.00012576,2]
[360798646,1747031432529,-226.08166956,0.00012576,2]
[360798647,1747031432539,-500.0,0.00012577,2]
[360798648,1747031432551,-500.0,0.00012577,2]
[360798649,1747031432560,-175.75942844,0.00012577,2]
[360798650,1747031432571,-324.24057156,0.00012577,2]
[360798651,1747031432581,-431.62619952,0.00012577,2]
[360798652,1747031435641,3553.24,0.00012253,2]
[360798653,1747031436729,-68.37380048,0.00012577,2]
[360798654,1747031436738,-421.01131888,0.00012577,2]
[360798655,1747031436826,-78.98868112,0.00012577,2]
[360798656,1747031436836,-271.01131888,0.00012577,2]
[360798657,1747031436848,-228.98868112,0.00012577,2]
[360798658,1747031436858,-500.0,0.00012577,2]
[360798659,1747031436867,-500.0,0.00012577,2]
[360798660,1747031436877,-500.0,0.00012577,2]
[360798661,1747031436886,-500.0,0.00012577,2]
[360798662,1747031436895,-500.0,0.00012577,2]
[360798663,1747031436905,-500.0,0.00012577,2]
[360798664,1747031436914,-500.0,0.00012577,2]
[360798665,1747031436925,-500.0,0.00012577,2]
[360798666,1747031436935,-500.0,0.00012577,2]
[360798667,1747031436945,-500.0,0.00012577,2]
[360798668,1747031436956,-500.0,0.00012577,2]
[360798669,1747031436966,-500.0,0.00012577,2]
[360798670,1747031436976,-500.0,0.00012577,2]
[360798671,1747031436985,-500.0,0.00012577,2]
[360798672,1747031436995,-500.0,0.00012577,2]
[360798674,1747031437004,-500.0,0.00012577,2]
[360798676,1747031437015,-500.0,0.00012577,2]
[360798678,1747031437025,-500.0,0.00012577,2]
[360798680,1747031437034,-500.0,0.00012577,2]
[360798682,1747031437045,-500.0,0.00012577,2]
[360798684,1747031437054,-500.0,0.00012577,2]
[360798686,1747031437064,-500.0,0.00012577,2]
[360798688,1747031437073,-500.0,0.00012577,2]
[360798690,1747031437082,-500.0,0.00012577,2]
[360798692,1747031437092,-500.0,0.00012577,2]
[360798694,1747031437101,-500.0,0.00012577,2]
[360798696,1747031437111,-500.0,0.00012577,2]
[360798698,1747031437119,-500.0,0.00012577,2]
[360798700,1747031437128,-500.0,0.00012577,2]
[360798702,1747031437138,-500.0,0.00012577,2]
[360798704,1747031437148,-344.70375828,0.00012577,2]
[360798706,1747031437157,-500.0,0.00012577,2]
[360798709,1747031437167,-500.0,0.00012577,2]
[360798712,1747031437176,-500.0,0.00012577,2]
[360798715,1747031437185,-500.0,0.00012577,2]
[360798717,1747031437194,-500.0,0.00012577,2]
[360798719,1747031437203,-500.0,0.00012577,2]
[360798721,1747031437212,-500.0,0.00012577,2]
[360798723,1747031437221,-500.0,0.00012577,2]
[360798725,1747031437231,-500.0,0.00012577,2]
[360798727,1747031437240,-500.0,0.00012577,2]
[360798729,1747031437250,-500.0,0.00012577,2]
[360798731,1747031437259,-500.0,0.00012577,2]
[360798733,1747031437269,-500.0,0.00012577,2]
[360798735,1747031437278,-906.34072823,0.00012577,2]
[360798738,1747031437288,-906.34072823,0.00012577,2]
[360798739,1747031437298,-906.34072823,0.00012577,2]
[360798741,1747031437310,-906.34072823,0.00012577,2]
[360798744,1747031437319,-906.34072823,0.00012577,2]
[360798746,1747031437329,-906.34072823,0.00012577,2]
[360798748,1747031437339,-906.34072823,0.00012577,2]
[360798750,1747031437348,-906.34072823,0.00012577,2]
[360798752,1747031437359,-906.34072823,0.00012577,2]
[360798754,1747031437368,-906.34072823,0.00012577,2]
[360798756,1747031437379,-906.34072823,0.00012577,2]
[360798758,1747031437388,-906.34072823,0.00012577,2]
[360798760,1747031437398,-906.34072823,0.00012577,2]
[360798762,1747031437410,-906.34072823,0.00012577,2]
[360798764,1747031437420,-906.34072823,0.00012577,2]
[360798766,1747031437429,-906.34072823,0.00012577,2]
[360798768,1747031437439,-906.34072823,0.00012577,2]
[360798770,1747031437448,-906.34072823,0.00012577,2]
[360798772,1747031437458,-906.34072823,0.00012577,2]
[360798774,1747031437468,-906.34072823,0.00012577,2]
[360798776,1747031437478,-906.34072823,0.00012577,2]
[360798778,1747031437487,-906.34072823,0.00012577,2]
[360798780,1747031437496,-906.34072823,0.00012577,2]
[360798782,1747031437506,-906.34072823,0.00012577,2]
[360798784,1747031437515,-906.34072823,0.00012577,2]
[360798786,1747031437524,-906.34072823,0.00012577,2]
[360798788,1747031437534,-878.4533212,0.00012577,2]
[360798790,1747031437543,-878.4533212,0.00012577,2]
[360798792,1747031437553,-878.4533212,0.00012577,2]
[360798794,1747031437564,-878.4533212,0.00012577,2]
[360798796,1747031437573,-878.4533212,0.00012577,2]
[360798798,1747031437583,-878.4533212,0.00012577,2]
[360798800,1747031437592,-738.37539542,0.00012577,2]
[360798843,1747031438630,-140.07792578,0.00012577,2]
[360798844,1747031438640,-878.4533212,0.00012577,2]
[360798845,1747031438649,-878.4533212,0.00012577,2]
[360798846,1747031438660,-878.4533212,0.00012577,2]
[360798847,1747031438672,-453.79943903,0.00012577,2]
[360798848,1747031438690,-424.65388217,0.00012577,2]
[360798849,1747031438700,-878.4533212,0.00012577,2]
[360798850,1747031438711,-878.45332114,0.00012577,2]
[360798851,1747031438721,-250.0,0.0001258,2]
[360798852,1747031438731,-1007.43947549,0.00012596,2]
[360798853,1747031438799,-1240.07,0.00012596,2]
[360798855,1747031439948,-780.61052451,0.00012596,2]
[360798856,1747031439958,-852.39921126,0.00012603,2]
[360798857,1747031440280,-596.76669111,0.00012603,2]
[360798882,1747031441481,-139.02208552,0.00012603,2]
[360798889,1747031442754,-2127.86657103,0.00012603,2]
[360798891,1747031442765,-150.0,0.00012623,2]
[360798892,1747031442774,-5522.13342897,0.00012632,2]
[360798893,1747031442838,-637.91657103,0.00012632,2]
[360798894,1747031442848,-200.55,0.00012637,2]
[360798895,1747031442857,-146.85433869,0.00012728,2]
[360798896,1747031442932,-268.75559245,0.00012728,2]
[360798897,1747031442944,-3300.44462778,0.00012728,2]
[360798898,1747031442953,-582.86,0.00012774,2]
[360798899,1747031442963,-1124.43622448,0.00012836,2]
[360798900,1747031442972,-36847.32151235,0.00012846,2]
[360798901,1747031442981,-3716.05455892,0.00012852,2]
[360798902,1747031442992,-3716.05455892,0.00012976,2]
[360798903,1747031443002,-668.65185757,0.00013012,2]
[360798904,1747031443012,-296.7682862,0.00013012,2]
[360798905,1747031443021,-207.4,0.00013012,2]
[360798906,1747031443030,-600.0,0.000131,4]
[360798907,1747031443040,-3716.05455892,0.00013101,2]
[360798908,1747031443049,-1300.0,0.000132,4]
[360798909,1747031443062,-3716.05455892,0.00013225,2]
[360798910,1747031443071,-2000.0,0.000133,4]
[360798911,1747031443081,-3716.05455892,0.00013349,2]
[360798912,1747031443090,-382.186,0.00013391,2]
[360798913,1747031443099,-1000.0,0.000134,2]
[360798914,1747031443108,-500.0,0.000134,2]
[360798915,1747031443117,-426.42,0.000134,2]
[360798916,1747031443127,-1382.0,0.000134,2]
[360798917,1747031443136,-2600.0,0.000134,4]
[360798918,1747031443147,-410.01873395,0.00013426,2]
[360798919,1747031443157,-1364.33958104,0.0001344,2]
[360798920,1747031443166,-536.26451518,0.00013473,2]
[360798921,1747031443175,-3716.05455892,0.00013474,2]
[360798922,1747031443186,-232.3,0.00013481,2]
[360798923,1747031443196,-232.3,0.0001349,2]
[360798924,1747031443206,-232.3,0.0001349,2]
[360798925,1747031443215,-48415.3035,0.00013491,2]
[360798926,1747031443225,-536.26451518,0.00013498,2]
[360798927,1747031443235,-50078.632,0.000135,2]
[360798928,1747031443245,-3300.0,0.000135,4]
[360798929,1747031443255,-232.3,0.000135,2]
[360798930,1747031443264,-10884.03323862,0.0001351,2]
[360798931,1747031443274,-536.26451518,0.00013523,2]
[360798932,1747031443283,-536.26451518,0.00013548,2]
[360798933,1747031443292,-232.3,0.00013553,2]
[360798934,1747031443302,-232.3,0.00013553,2]
[360798935,1747031443313,-232.3,0.00013553,2]
[360798936,1747031443322,-693.3919763,0.0001356,2]
[360798937,1747031443332,-67658.7477887,0.00013563,2]
[360798938,1747031443342,-8531.55431531,0.00013573,2]
[360798939,1747031443352,-536.26451518,0.00013573,2]
[360798940,1747031443361,-232.3,0.00013588,2]
[360798941,1747031443371,-200.0,0.00013588,2]
[360798942,1747031443381,-379.10367639,0.00013589,2]
[360798943,1747031443390,-379.10367634,0.0001359,2]
[360798944,1747031443399,-238.24614159,0.0001359,2]
[360798945,1747031443409,-238.24614152,0.00013591,2]
[360798946,1747031443418,-379.10367634,0.00013591,2]
[360798947,1747031443427,-238.24614152,0.00013592,2]
[360798948,1747031443437,-379.10367634,0.00013592,2]
[360798949,1747031443446,-238.24614152,0.00013593,2]
[360798950,1747031443456,-379.10367634,0.00013593,2]
[360798951,1747031443465,-238.24614152,0.00013594,2]
[360798952,1747031443475,-379.10367634,0.00013594,2]
[360798953,1747031443484,-238.24614152,0.00013594,2]
[360798954,1747031443493,-379.10367634,0.00013595,2]
[360798955,1747031443503,-238.24614152,0.00013595,2]
[360798956,1747031443512,-379.10367634,0.00013596,2]
[360798957,1747031443521,-238.24614152,0.00013596,2]
[360798958,1747031443531,-379.10367634,0.00013597,2]
[360798959,1747031443540,-238.24614152,0.00013597,2]
[360798960,1747031443549,-170.29105835,0.00013598,2]
[360798961,1747031443560,-181.44713771,0.00013598,2]
[360798962,1747031443570,-334.59872199,0.00013598,2]
[360798963,1747031443579,-375.73657579,0.00013598,2]
[360798964,1747031443588,-536.26451518,0.00013598,2]
[360798965,1747031443598,-3716.05455892,0.00013598,2]
[360798966,1747031443607,-379.10367634,0.00013598,2]
[360798967,1747031443616,-238.24614152,0.00013598,2]
[360798968,1747031443625,-248.02792338,0.00013598,2]
[360798969,1747031443635,-2403.21458951,0.00013598,2]
[360798970,1747031443644,-232.22717358,0.00013598,2]
[360798971,1747031443654,-798.98528451,0.000136,2]
[360798972,1747031443664,-600.0,0.000136,4]
[360798973,1747031443677,-3655.1228518,0.00013629,2]
[360798974,1747031443686,-1304.0,0.00013633,2]
[360798975,1747031443696,-930.0,0.00013633,2]
[360798976,1747031443706,-4029.0,0.00013633,2]
[360798977,1747031443716,-3906.481,0.00013646,2]
[360798978,1747031443726,-172.45,0.00013651,2]
[360798979,1747031443736,-177.045515,0.00013655,2]
[360798980,1747031443745,-255.0,0.0001367,2]
[360798981,1747031443755,-501.00387771,0.00013673,2]
[360798982,1747031443766,-500.0,0.00013673,2]
[360798983,1747031443776,-186.23352644,0.00013673,2]
[360798984,1747031443785,-502.56730322,0.00013673,2]
[360798985,1747031443795,-525.31982311,0.00013673,2]
[360798986,1747031443804,-160.36207104,0.00013673,2]
[360798987,1747031443820,-303.51689518,0.00013673,2]
[360798988,1747031443830,-500.0,0.00013673,2]
[360798989,1747031443839,-500.0,0.00013673,2]
[360798990,1747031443849,-161.79616239,0.00013673,2]
[360798991,1747031443858,-500.0,0.00013673,2]
[360798992,1747031443867,-182.61259476,0.00013673,2]
[360798993,1747031443876,-1274.74963706,0.00013675,2]
[360798994,1747031443886,-1274.74963707,0.00013675,2]
[360798995,1747031443895,-232.3,0.00013678,2]
[360798996,1747031443905,-232.3,0.00013679,2]
[360798997,1747031443914,-588.48063858,0.00013688,2]
[360798998,1747031443924,-588.48063858,0.00013688,2]
[360798999,1747031443933,-66839.9142235,0.00013689,2]
[360799000,1747031443943,-66021.0806583,0.00013689,2]
[360799001,1747031443953,-998.12750046,0.0001369,2]
[360799002,1747031443963,-3017.76193706,0.0001369,2]
[360799003,1747031443973,-47618.63821917,0.00013691,2]
[360799004,1747031444344,-161.302,0.00013666,2]
[360799005,1747031444354,-497.07660201,0.00013691,2]
[360799007,1747031444394,-14134.23649121,0.00013691,2]
[360799009,1747031444403,-300.0,0.00013697,2]
[360799011,1747031444412,-300.0,0.00013697,2]
[360799013,1747031444421,-325.7611551,0.00013697,2]
[360799014,1747031444430,-300.0,0.00013697,2]
[360799015,1747031444439,-543.0,0.00013698,2]
[360799016,1747031444448,-154.880926,0.00013698,2]
[360799017,1747031444457,-151.689181,0.00013698,2]
[360799018,1747031444466,-617.92357618,0.00013698,2]
[360799019,1747031444476,-154.84368678,0.00013698,2]
[360799020,1747031444485,-151.0,0.00013698,2]
[360799021,1747031444494,-153.135827,0.00013698,2]
[360799022,1747031444504,-219.7435134,0.00013698,2]
[360799023,1747031444514,-400.0,0.00013698,2]
[360799024,1747031444524,-432.76783362,0.00013698,2]
[360799025,1747031444533,-400.0,0.00013698,2]
[360799026,1747031444542,-400.0,0.00013698,2]
[360799027,1747031444551,-400.0,0.00013698,2]
[360799028,1747031444561,-400.0,0.00013698,2]
[360799029,1747031444571,-307.33443565,0.00013698,2]
[360799030,1747031444580,-400.0,0.00013698,2]
[360799032,1747031444589,-400.0,0.00013698,2]
[360799033,1747031444598,-400.0,0.00013698,2]
[360799034,1747031444608,-400.0,0.00013698,2]
[360799035,1747031444617,-172.09037928,0.00013698,2]
[360799036,1747031444627,-400.78321181,0.00013698,2]
[360799037,1747031444636,-400.0,0.00013698,2]
[360799038,1747031444646,-400.0,0.00013698,2]
[360799039,1747031444655,-172.23057518,0.00013698,2]
[360799040,1747031444665,-400.0,0.00013698,2]
[360799041,1747031444679,-400.0,0.00013698,2]
[360799042,1747031444688,-400.0,0.00013698,2]
[360799043,1747031444698,-400.0,0.00013698,2]
[360799044,1747031444707,-400.0,0.00013698,2]
[360799045,1747031444718,-400.0,0.00013698,2]
[360799046,1747031444727,-225.16189519,0.00013698,2]
[360799047,1747031444737,-400.0,0.00013698,2]
[360799048,1747031444748,-400.0,0.00013698,2]
[360799049,1747031444758,-400.0,0.00013698,2]
[360799050,1747031444767,-272.12984239,0.00013698,2]
[360799051,1747031444776,-400.0,0.00013698,2]
[360799052,1747031444786,-251.91451164,0.00013698,2]
[360799053,1747031444795,-337.76160316,0.00013698,2]
[360799054,1747031444804,-400.0,0.00013698,2]
[360799055,1747031444815,-400.0,0.00013698,2]
[360799056,1747031444824,-400.0,0.00013698,2]
[360799057,1747031444834,-400.0,0.00013698,2]
[360799058,1747031444844,-400.0,0.00013698,2]
[360799059,1747031444853,-251.60100659,0.00013698,2]
[360799060,1747031444863,-400.0,0.00013698,2]
[360799061,1747031444872,-400.0,0.00013698,2]
[360799062,1747031444881,-237.87447758,0.00013698,2]
[360799063,1747031444891,-400.0,0.00013698,2]
[360799064,1747031444901,-400.0,0.00013698,2]
[360799065,1747031444911,-277.99441213,0.00013698,2]
[360799066,1747031444920,-400.0,0.00013698,2]
[360799067,1747031444929,-327.73167231,0.00013698,2]
[360799068,1747031444941,-400.0,0.00013698,2]
[360799069,1747031444951,-400.0,0.00013698,2]
[360799070,1747031444960,-400.0,0.00013698,2]
[360799071,1747031444970,-400.0,0.00013698,2]
[360799072,1747031444979,-400.0,0.00013698,2]
[360799073,1747031444988,-186.81629495,0.00013698,2]
[360799074,1747031444997,-400.0,0.00013698,2]
[360799075,1747031445007,-400.0,0.00013698,2]
[360799076,1747031445017,-400.0,0.00013698,2]
[360799077,1747031445027,-400.0,0.00013698,2]
[360799078,1747031445036,-400.0,0.00013698,2]
[360799079,1747031445045,-400.0,0.00013698,2]
[360799080,1747031445055,-400.0,0.00013698,2]
[360799081,1747031445066,-400.0,0.00013698,2]
[360799082,1747031445075,-400.0,0.00013698,2]
[360799083,1747031445084,-350.9711497,0.00013698,2]
[360799084,1747031445093,-311.414569,0.00013698,2]
[360799085,1747031445103,-400.0,0.00013698,2]
[360799086,1747031445113,-400.0,0.00013698,2]
[360799087,1747031445123,-400.0,0.00013698,2]
[360799088,1747031445133,-400.0,0.00013698,2]
[360799089,1747031445142,-400.0,0.00013698,2]
[360799090,1747031445153,-236.71915747,0.00013698,2]
[360799091,1747031445163,-2073.18,0.00013698,2]
[360799092,1747031445172,-2073.18,0.00013698,2]
[360799093,1747031445181,-2073.18,0.00013698,2]
[360799094,1747031445192,-2073.18,0.00013698,2]
[360799095,1747031445202,-2073.18,0.00013698,2]
[360799096,1747031445211,-2073.18,0.00013698,2]
[360799097,1747031445222,-2073.18,0.00013698,2]
[360799098,1747031445232,-2073.18,0.00013698,2]
[360799099,1747031445243,-518.65668405,0.00013698,2]
[360799100,1747031445252,-2073.18,0.00013698,2]
[360799101,1747031445262,-2073.18,0.00013698,2]
[360799102,1747031445271,-2073.18,0.00013698,2]
[360799103,1747031445280,-2073.18,0.00013698,2]
[360799104,1747031445290,-2073.18,0.00013698,2]
[360799105,1747031445299,-2073.18,0.00013698,2]
[360799106,1747031445309,-2073.18,0.00013698,2]
[360799107,1747031445318,-400.0,0.00013698,2]
[360799108,1747031445328,-2073.18,0.00013698,2]
[360799109,1747031445338,-400.0,0.00013698,2]
[360799110,1747031445347,-2073.18,0.00013698,2]
[360799111,1747031445356,-400.6006857,0.00013698,2]
[360799112,1747031445365,-2073.18,0.00013698,2]
[360799113,1747031445375,-2073.18,0.00013698,2]
[360799114,1747031445384,-2073.18,0.00013698,2]
[360799115,1747031445393,-2073.18,0.00013698,2]
[360799116,1747031445403,-2073.18,0.00013698,2]
[360799117,1747031445413,-2073.18,0.00013698,2]
[360799118,1747031445423,-2073.38,0.00013698,2]
[360799119,1747031445433,-1556.34,0.00013698,2]
[360799120,1747031445443,-1556.34,0.00013698,2]
[360799121,1747031445453,-1556.34,0.00013698,2]
[360799123,1747031445463,-1556.34,0.00013698,2]
[360799124,1747031445472,-1556.34,0.00013698,2]
[360799126,1747031445483,-1556.34,0.00013698,2]
[360799127,1747031445492,-1556.34,0.00013698,2]
[360799128,1747031445502,-1556.34,0.00013698,2]
[360799129,1747031445511,-1556.34,0.00013698,2]
[360799130,1747031445521,-1556.34,0.00013698,2]
[360799131,1747031445530,-1556.34,0.00013698,2]
[360799132,1747031445540,-1556.34,0.00013698,2]
[360799133,1747031445550,-400.0,0.00013698,2]
[360799136,1747031445560,-400.0,0.00013698,2]
[360799138,1747031445569,-400.0,0.00013698,2]
[360799139,1747031445579,-1556.34,0.00013698,2]
[360799140,1747031445589,-400.0,0.00013698,2]
[360799141,1747031445599,-1556.34,0.00013698,2]
[360799142,1747031445608,-400.0,0.00013698,2]
[360799143,1747031445617,-1556.34,0.00013698,2]
[360799144,1747031445626,-400.0,0.00013698,2]
[360799145,1747031445636,-1556.34,0.00013698,2]
[360799146,1747031445645,-400.0,0.00013698,2]
[360799147,1747031445655,-1556.34,0.00013698,2]
[360799148,1747031445664,-400.0,0.00013698,2]
[360799149,1747031445676,-1556.34,0.00013698,2]
[360799150,1747031445686,-400.0,0.00013698,2]
[360799151,1747031445696,-1556.34,0.00013698,2]
[360799152,1747031445706,-371.20592436,0.00013698,2]
[360799153,1747031445715,-1556.34,0.00013698,2]
[360799154,1747031445725,-1556.34,0.00013698,2]
[360799155,1747031445734,-1556.34,0.00013698,2]
[360799156,1747031445745,-1556.34,0.00013698,2]
[360799157,1747031445756,-1556.3970072,0.00013698,2]
[360799158,1747031445766,-400.0,0.00013698,2]
[360799159,1747031445775,-400.0,0.00013698,2]
[360799160,1747031445785,-400.0,0.00013698,2]
[360799161,1747031445794,-400.0,0.00013698,2]
[360799162,1747031445804,-400.0,0.00013698,2]
[360799163,1747031445815,-400.0,0.00013698,2]
[360799164,1747031445825,-400.0,0.00013698,2]
[360799165,1747031445835,-400.0,0.00013698,2]
[360799166,1747031445845,-400.0,0.00013698,2]
[360799167,1747031445854,-400.0,0.00013698,2]
[360799168,1747031445863,-400.0,0.00013698,2]
[360799169,1747031445873,-400.0,0.00013698,2]
[360799170,1747031445882,-295.00091888,0.00013698,2]
[360799171,1747031445892,-400.0,0.00013698,2]
[360799172,1747031445902,-400.0,0.00013698,2]
[360799173,1747031445911,-400.0,0.00013698,2]
[360799174,1747031445922,-400.0,0.00013698,2]
[360799175,1747031445931,-400.0,0.00013698,2]
[360799176,1747031445940,-400.0,0.00013698,2]
[360799177,1747031445950,-400.0,0.00013698,2]
[360799178,1747031445959,-400.0,0.00013698,2]
[360799179,1747031445968,-400.0,0.00013698,2]
[360799180,1747031445977,-400.0,0.00013698,2]
[360799181,1747031445986,-400.0,0.00013698,2]
[360799182,1747031445995,-400.0,0.00013698,2]
[360799183,1747031446006,-400.0,0.00013698,2]
[360799184,1747031446017,-400.0,0.00013698,2]
[360799185,1747031446026,-400.0,0.00013698,2]
[360799186,1747031446035,-400.0,0.00013698,2]
[360799187,1747031446044,-400.0,0.00013698,2]
[360799188,1747031446055,-400.0,0.00013698,2]
[360799189,1747031446066,-228.33306944,0.00013698,2]
[360799190,1747031446076,-400.0,0.00013698,2]
[360799191,1747031446085,-400.0,0.00013698,2]
[360799192,1747031446094,-400.0,0.00013698,2]
[360799193,1747031446104,-400.0,0.00013698,2]
[360799194,1747031446113,-400.0,0.00013698,2]
[360799195,1747031446122,-400.0,0.00013698,2]
[360799196,1747031446131,-400.0,0.00013698,2]
[360799197,1747031446142,-400.0,0.00013698,2]
[360799198,1747031446152,-186.87476053,0.00013698,2]
[360799199,1747031446162,-400.0,0.00013698,2]
[360799200,1747031446171,-400.0,0.00013698,2]
[360799201,1747031446181,-400.0,0.00013698,2]
[360799202,1747031446192,-537.63065291,0.00013698,2]
[360799203,1747031446201,-400.0,0.00013698,2]
[360799204,1747031446211,-400.0,0.00013698,2]
[360799205,1747031446221,-439.16471468,0.00013698,2]
[360799206,1747031446231,-400.0,0.00013698,2]
[360799207,1747031446241,-400.0,0.00013698,2]
[360799209,1747031446250,-400.0,0.00013698,2]
[360799211,1747031446259,-400.0,0.00013698,2]
[360799213,1747031446267,-400.0,0.00013698,2]
[360799215,1747031446277,-400.0,0.00013698,2]
[360799217,1747031446287,-400.0,0.00013698,2]
[360799219,1747031446296,-400.0,0.00013698,2]
[360799221,1747031446305,-400.0,0.00013698,2]
[360799223,1747031446319,-400.0,0.00013698,2]
[360799225,1747031446328,-400.0,0.00013698,2]
[360799227,1747031446337,-400.0,0.00013698,2]
[360799228,1747031446347,-400.0,0.00013698,2]
[360799229,1747031446356,-401.81836128,0.00013698,2]
[360799230,1747031446365,-400.0,0.00013698,2]
[360799232,1747031446375,-400.0,0.00013698,2]
[360799235,1747031446384,-400.0,0.00013698,2]
[360799238,1747031446394,-400.0,0.00013698,2]
[360799241,1747031446403,-400.0,0.00013698,2]
[360799244,1747031446412,-400.0,0.00013698,2]
[360799247,1747031446422,-400.0,0.00013698,2]
[360799249,1747031446431,-400.0,0.00013698,2]
[360799251,1747031446440,-400.0,0.00013698,2]
[360799253,1747031446450,-1226.65,0.00013698,2]
[360799255,1747031446459,-400.0,0.00013698,2]
[360799257,1747031446469,-400.0,0.00013698,2]
[360799259,1747031446478,-1226.65,0.00013698,2]
[360799261,1747031446488,-400.0,0.00013698,2]
[360799263,1747031446497,-360.73731197,0.00013698,2]
[360799265,1747031446506,-400.0,0.00013698,2]
[360799267,1747031446515,-1226.65,0.00013698,2]
[360799269,1747031446526,-400.0,0.00013698,2]
[360799271,1747031446535,-400.0,0.00013698,2]
[360799273,1747031446545,-1226.65,0.00013698,2]
[360799275,1747031446554,-400.0,0.00013698,2]
[360799277,1747031446565,-400.0,0.00013698,2]
[360799279,1747031446574,-1226.65,0.00013698,2]
[360799281,1747031446582,-400.0,0.00013698,2]
[360799283,1747031446591,-400.0,0.00013698,2]